Cogmind - Beta 17.1 @@@ ROGUE MODE // 2026.08.31 @ 08:42:53 Player: Cole Result: Destroyed by G-34 Mercenary with Small Laser Performance ------------- Evolutions (0) 0 Regions Visited (2) 400 Robots Destroyed (20) 100 Value Destroyed (502) 502 Prototype IDs (0) 0 Alien Tech Used (0) 0 Bonus (0) 0 TOTAL SCORE: 1002 Bonus ------- None Cogmind --------- Core Integrity 0/250 Matter 300/300 Energy 97/100 System Corruption 2% Temperature Cool (12) Movement Rolling (140) Ox4 Location -10/Mines Parts ------- > --- POWER (1) -------- (None) > --- PROPULSION (2) --- Wheel > --- UTILITY (2) ------ Heat Sink High-capacity Storage Unit > --- WEAPON (2) ------- EM Pulse Gun > --- INVENTORY (20) --- Ion Engine Wheel Wheel Medium Storage Unit Large Battery (200) Small Matter Pod (50) Visual Processing Unit Weapon Shielding Datajack Peak State ------------ > --- POWER ------------ Ion Engine > --- PROPULSION ------- Wheel Wheel > --- UTILITY ---------- Heat Sink Medium Storage Unit > --- WEAPON ----------- Particle Gun Particle Gun > --- INVENTORY -------- Ion Engine Wheel Wheel Small Storage Unit Large Battery Small Matter Pod Visual Processing Unit Weapon Shielding EM Pulse Gun Light Assault Rifle [Rating: 10] Favorites ----------- Power Ion Engine Engine Ion Engine Propulsion Wheel Treads Light Treads Wheel Wheel Utility Heat Sink Device Heat Sink Storage Medium Storage Unit Weapon Particle Gun Energy Gun Particle Gun Ballistic Gun Light Assault Rifle Special Melee Weapon Datajack Build | -11 -10 -10 ------- Run | Yrd Mat Min Slots Evolved . | . . . Power . | . . . Propulsion . | . . . Utility . | . . . Weapon . | . . . Parts Attached 19 | 8 10 1 Power 3 | 1 2 . Engine 3 | 1 2 . Core . | . . . Reactor . | . . . Propulsion 5 | 4 1 . Treads 2 | 2 . . Leg . | . . . Wheel 3 | 2 1 . Hover . | . . . Flight . | . . . Utility 5 | 1 3 1 Device 1 | . 1 . Storage 4 | 1 2 1 Processor . | . . . Hackware . | . . . Protection . | . . . Artifact . | . . . Weapon 6 | 2 4 . Energy Gun 3 | 1 2 . Energy Cannon . | . . . Ballistic Gun 2 | 1 1 . Ballistic Cannon . | . . . Launcher . | . . . Special Weapon . | . . . Impact Weapon . | . . . Slashing Weapon . | . . . Piercing Weapon . | . . . Special Melee Weapon 1 | . 1 . Unidentified Prototypes . | . . . Parts Lost 6 | . 2 4 Power 2 | . 1 1 Propulsion 1 | . . 1 Utility . | . . . Weapon 3 | . 1 2 Highest Loss Streak 4 | . 1 4 To Critical Strikes . | . . . Average Backups 8 | 1 7 9 Power . | . . 1 Propulsion 1 | 1 2 2 Utility 3 | . 3 5 Weapon . | . 1 . Tool/Special . | . . . Unused Backups 5 | . . 5 Power . | . . . Propulsion 1 | . . 1 Utility 4 | . . 4 Weapon . | . . . Tool/Special . | . . . Average Slot Usage (%) 97 | . 96 98 Engine 13 | . 14 13 Wheel 27 | . 28 27 Device 10 | . 8 14 Storage 16 | . 17 14 Energy Gun 23 | . 20 27 Ballistic Gun 3 | . 4 . Special Melee Weapon 1 | . 1 . Peak Build Rating 10 | 6 10 10 Average Rating 8 | 4 8 9 On Entrance 5 | . 6 10 Avg Prop Armor Cover (%) 14 | 14 . . Naked Turns . | . . . Heaviest Build 53 | 13 53 52 Greatest Support 40 | 40 20 20 Greatest Overweight (x) 4 | 1 2 4 Average Overweight (x) . | . . 1 Largest Inventory Capacity 20 | 8 20 20 Average Capacity 13 | 7 10 17 Most Carried 10 | 3 10 10 Average Carried 8 | 1 7 9 Final Capacity 20 | 8 10 20 Final Carried 10 | 3 10 9 Class Distribution -------------------- 65% | Scavenger-Mutant 34% | Mutant Dominant Class ---------------- Scavenger-Mutant | -10/Materials Scavenger-Mutant | -10/Mines Resources | -11 -10 -10 ----------- Run | Yrd Mat Min Matter Collected 530 | 207 299 24 Remotely . | . . . Salvage Created 612 | . 612 . Parts 33 | . 33 . Haulers Intercepted 1 | . 1 . Recyclers Shooed . | . . . Parts Field Recycled . | . . . Retrieved Matter . | . . . Parts Self-Destructed . | . . . Prevented . | . . . Parts Restored . | . . . Kills | -11 -10 -10 ------- Run | Yrd Mat Min Combat Hostiles Destroyed 14 | . 14 . Guns 11 | . 11 . AOE 1 | . 1 . Classes Destroyed 6 | . 6 . Worker 2 | . 2 . Hauler 1 | . 1 . Operator 1 | . 1 . Watcher 2 | . 2 . Swarmer 3 | . 3 . Grunt 11 | . 11 . Best Kill Streak 5 | . 5 . Combat Bots Only 4 | . 4 . Max Kills in Single Turn 2 | . 2 . Gunslinging . | . . . Exploded 1 | . 1 . Melee . | . . . Uniques/NPCs Destroyed . | . . . Combat | -11 -10 -10 -------- Run | Yrd Mat Min Hostile Shots Fired 103 | . 58 45 Missed 31 | . 15 16 Hits 72 | . 43 29 Projectile 72 | . 43 29 Critical Strikes 1 | . 1 . Damage Taken 997 | . 689 308 Core 251 | . 162 89 Absorbed by Shields . | . . . Core Remaining (%) 100 | 100 . . Volleys Fired 79 | . 61 18 Largest 2 | . 2 2 Hottest 130 | . 130 130 Shots Fired 147 | . 118 29 Gun 147 | . 118 29 Cannon . | . . . Launcher . | . . . Special . | . . . Kinetic 22 | . 22 . Thermal 110 | . 87 23 Explosive . | . . . Electromagnetic 15 | . 9 6 Robot Hit Streak 9 | . 9 2 Robot Miss Streak 3 | . 3 1 Penetration Max . | . . . Secondary Targets 2 | . 2 . Max Gunslinging Chain 1 | . 1 . Shots Hit Robots 79 | . 75 4 Core Hits 30 | . 29 1 Critical Kills . | . . . Critical Parts Destroyed . | . . . Critical Strikes 6 | . 6 . Burn 6 | . 6 . Melee Attacks 1 | . 1 . Impact . | . . . Slashing . | . . . Piercing . | . . . Sneak Attacks . | . . . Combat Hostiles . | . . . Follow-up Attacks . | . . . Damage Inflicted 1283 | . 1217 66 Guns 1161 | . 1095 66 Cannons . | . . . Explosions 122 | . 122 . Melee . | . . . Ramming . | . . . Kinetic 85 | . 85 . Thermal 1031 | . 1031 . Explosive . | . . . Electromagnetic 167 | . 101 66 Impact . | . . . Slashing . | . . . Piercing . | . . . Highest Corruption 2 | . 2 2 Average Corruption 1 | . 1 2 Corruption Purged . | . . . Corruption Blocked . | . . . Effects 8 | . 2 6 Message Errors 2 | . . 2 Matter Fused 4 | . 1 3 Data Loss (minor) 1 | . 1 . Data Loss (major) 1 | . . 1 Overload Shots . | . . . Overflow Damage 34 | . 34 . Projectiles . | . . . Explosions 34 | . 34 . Melee . | . . . Knockbacks . | . . . Impact . | . . . Kinetic . | . . . Secondary . | . . . Self-Inflicted Damage 160 | . 160 . Shots 3 | . 3 . Rammed . | . . . Targets Rammed . | . . . Kicked . | . . . Crushed . | . . . Highest Temperature 368 | . 368 351 Average Temperature 113 | . 107 141 Received Heat Transfer 459 | . 285 174 Effects 3 | . 2 1 Shutdowns 1 | . 1 . Matter Decay 1 | . 1 . Damage (minor) 1 | . . 1 Siege Activations . | . . . Martial Activations . | . . . Shielding Activations . | . . . Robots Disrupted . | . . . Combat Hostiles . | . . . Robots Corrupted . | . . . Combat Hostiles . | . . . Parts Fried 2 | . 2 . Impact Corruptions . | . . . Robots Melted 2 | . 2 . Combat Hostiles 2 | . 2 . Parts Melted 4 | . 4 . Heat Transferred 2640 | . 2640 . Parts Sabotaged . | . . . Parts Stolen . | . . . Parts Stripped . | . . . Power Chain Reactions 1 | . 1 . Alert | -11 -10 -10 ------- Run | Yrd Mat Min Maximum Alert Level 1 | . 1 . Low Security (%) 97 | 100 95 100 Level 1 2 | . 4 . Level 2 . | . . . Level 3 . | . . . Level 4 . | . . . Level 5 . | . . . High Security . | . . . Max Security . | . . . Peak Influence 211 | . 211 65 Initial 65 | . . 65 Average 74 | . 117 8 Influence Increases 512 | . 512 . Destroy 0b10 Robot/C 280 | . 280 . Destroy 0b10 Robot/NC 30 | . 30 . Destroy Leader 76 | . 76 . Successful Hack 7 | . 7 . Disable Machine 30 | . 30 . Destroy Structure 29 | . 29 . Lose Combat Pursuer 60 | . 60 . Influence Decreases 512 | . 344 168 Entered New Map 103 | . . 103 Time Decay 389 | . 324 65 Lost Part 20 | . 20 . Squads Dispatched 4 | . 4 . Investigation 2 | . 2 . Extermination . | . . . Reinforcement 2 | . 2 . Assault . | . . . Garrison . | . . . Intercept . | . . . Searches Triggered . | . . . Construction Impeded . | . . . Haulers Reinforced . | . . . Active Scanning Responses . | . . . Cargo Convoy Interrupts . | . . . Stealth | -11 -10 -10 --------- Run | Yrd Mat Min Distress Signals 4 | . 2 2 Communications Jammed . | . . . Distress Signals . | . . . Times Spotted 30 | . 26 4 Peak Tracking Total 5 | . 5 4 Tactical Retreats 3 | . 3 . Traps | -11 -10 -10 ------- Run | Yrd Mat Min Traps Triggered 4 | . 4 . Indirectly . | . . . Trap Hack Attempts . | . . . Triggered . | . . . Disarmed . | . . . Reprogrammed . | . . . Reused . | . . . Traps Extracted . | . . . Installed . | . . . Triggered . | . . . Machines | -11 -10 -10 ---------- Run | Yrd Mat Min Machines Disabled 2 | . 2 . Max in Single Turn 2 | . 2 . Machines Repaired . | . . . Machines Dismantled . | . . . Machines Sabotaged . | . . . Overloaded Fab Kills . | . . . Hacking | -11 -10 -10 --------- Run | Yrd Mat Min Machines Accessed 6 | . 6 . Terminals 6 | . 6 . Fabricators . | . . . Repair Stations . | . . . Recycling Units . | . . . Scanalyzers . | . . . Garrison Access . | . . . Total Hacks 18 | . 18 . Successful 11 | . 11 . Failed 7 | . 7 . Catastrophic 4 | . 4 . Database Lockouts . | . . . Manual 16 | . 16 . Terminals 18 | . 18 . Fabricators . | . . . Repair Stations . | . . . Recycling Units . | . . . Scanalyzers . | . . . Garrison Access . | . . . Terminal Hacks 1 | . 1 . Alert Level 1 | . 1 . Fabricator Hacks . | . . . Repair Station Hacks . | . . . Recycling Unit Hacks . | . . . Scanalyzer . | . . . Garrison Access Hacks . | . . . Unauthorized Hacks 8 | . 8 . Terminals 8 | . 8 . Track 2 | . 2 . Assimilate 2 | . 2 . Botnet 4 | . 4 . Fabricators . | . . . Repair Stations . | . . . Recycling Units . | . . . Scanalyzers . | . . . Garrison Access . | . . . Data Cores Recovered . | . . . Used . | . . . Hacking Detections 5 | . 5 . Full Trace Events 2 | . 2 . Feedback Events . | . . . Feedback Blocked . | . . . Robot Schematics Acquired . | . . . Robots Built . | . . . Authchips . | . . . Time . | . . . Total Robot Build Rating . | . . . Part Schematics Acquired . | . . . Parts Built . | . . . Authchips . | . . . Time . | . . . Total Part Build Rating . | . . . Part Studies Acquired . | . . . Parts Repaired . | . . . Time . | . . . Parts Recycled . | . . . Recycled Matter . | . . . Retrieved Matter . | . . . Retrieved Components . | . . . Parts Scanalyzed . | . . . Part Schematics Acquired . | . . . Parts Damaged . | . . . Bothacking | -11 -10 -10 ------------ Run | Yrd Mat Min Used RIF Installer . | . . . Robots Hacked . | . . . Non-combat . | . . . Combat . | . . . Robot Hacks Applied . | . . . Relay Couplers Released . | . . . Fabnet Peak Effective % . | . . . Robots Rewired . | . . . Allies Hacked . | . . . Hacks Repelled . | . . . Allies | -11 -10 -10 -------- Run | Yrd Mat Min Total Allies . | . . . Largest Group . | . . . Highest-Rated Group . | . . . Highest-Rated Ally . | . . . Total Orders . | . . . Ally Attacks . | . . . Total Damage . | . . . Kills . | . . . Allies Corrupted . | . . . Allies Melted . | . . . Intel | -11 -10 -10 ------- Run | Yrd Mat Min Active Infowar (turns) . | . . . Robot Analysis Total . | . . . Derelict Logs Recovered . | . . . Drone Launches . | . . . Drone Recoveries . | . . . Exploration | -11 -10 -10 ------------- Run | Yrd Mat Min Turns Passed 1508 | 55 913 540 Spaces Moved 890 | 44 681 165 Core 5 | 5 . . Treads 8 | 8 . . Legs . | . . . Wheels 877 | 31 681 165 Hover . | . . . Flight . | . . . Fastest Speed 50 | 50 80 95 Average Speed 92 | 92 91 99 Slowest Speed 160 | 160 110 140 Overloaded Moves . | . . . Propulsion Burnouts . | . . . Robots Hopped . | . . . Potential Cave-ins . | . . . Cave-ins Triggered . | . . . Exploration Rate (%) 48 | 4 95 47 Regions Visited 2 Branch Regions 1 Pre-discovered Areas 1 | . . 1 Known Exits Taken . | . . . Unknown Exits Taken 2 | 1 1 . Scrap Searched 1 | . . 1 Spaces Dug . | . . . Terrain Destroyed 28 | . 28 . Melee . | . . . Projectile . | . . . AOE 28 | . 28 . Terrain Rammed . | . . . Walls Destroyed . | . . . Machines Disabled . | . . . Actions | -11 -10 -10 --------- Run | Yrd Mat Min Total 1425 | 55 858 512 Wait 414 | 1 87 326 Move 888 | 43 680 165 Hop . | . . . Pick Up 9 | 1 8 . Fast Attach 15 | 8 7 . Attach 3 | . 2 1 Detach 6 | 2 4 . Swap 3 | . 2 1 Drop 7 | . 6 1 Fire 79 | . 61 18 Melee 1 | . 1 . Ram . | . . . Kick . | . . . Crush . | . . . Escape Stasis . | . . . Rewire . | . . . Trap . | . . . Miscellaneous . | . . . Route ------- -11/Scrapyard -10/Materials (discovered 5 exits: [*Mat x3] / [*Min x2]) -10/Mines History --------- Turn | Location | Event 29 | -11/Scrapyard | Discovered new exit (range 16) 56 | -11/Scrapyard | Entered Materials 98 | -10/Materials | Discovered new exit (range 10) 246 | -10/Materials | Discovered new exit (range 4) 300 | -10/Materials | Build established: Mutant 437 | -10/Materials | Discovered new exit (range 10) 530 | -10/Materials | Discovered new exit (range 7) 711 | -10/Materials | Discovered new exit (range 3) 863 | -10/Materials | Core integrity fell below 50% 969 | -10/Materials | Entered Mines 995 | -10/Mines | Learned location of Storage (-9) 1050 | -10/Mines | Build established: Scavenger-Mutant 1138 | -10/Mines | Excavation squad dispatched 1138 | -10/Mines | A large section of the Mines collapsed 1388 | -10/Mines | Excavation squad dispatched 1506 | -10/Mines | Core integrity fell below 20% 1509 | -10/Mines | Destroyed by G-34 Mercenary with Small Laser Last Messages --------------- 01487_ U-05 Engineer destroyed. 01487_ Particle Gun destroyed. 01488_ K-01 Serf collects debris. 01488_ T-07 Excavator is excavating. 01492_ Wheel destroyed. 01494_ T-07 Excavator is excavating. 01495_ K-01 Serf collects debris. 01498_ Ion Engine destroyed. 01498_ T-07 Excavator destroyed. 01498_ Acquired 4 matter. 01499_ K-01 Serf collects debris. 01500_ K-01 Serf destroyed. 01501_ K-01 Serf collects debris. 01503_ T-07 Excavator is excavating. 01504_ K-01 Serf collects debris. 01507_ T-07 Excavator is excavating. 01507_ U-05 Engineer lays Concrete. 01507_ U-05 Engineer destroyed. 01507_ K-01 Serf collects debris. 01508_ T-07 Excavator is excavating. Map ----- +----------------------------------------------------+ | ????????????????????????????????????????????????? | | ????????????????????????????????????????????????? | | ????????????????????????????????????????????????? | | ????????????????????????????????????????????????? | | ????????????????????????????????????????????????? | | ????????????????????????????????????????????????? | | ????????????????????????????????????????????????? | | ????????????????????????????????????????????????? | | ????????????????????????????????????????????????? | | ????????????????????????????????????????????????? | | ????????????????????????????????????????????????? | | ???????????????????????????? ???????????????????? | | ???????????????????????????? ??????????????????? | | ???????????????????????????? #??????????????????? | | ??????????????????????????? r#??????????????????? | | ??????????????????????????? #??????????????????? | | ??????????????????????????? #??????????????????? | | ?????????????????????????## ##?????????????????? | | ???????????????????????## #?????????????????? | | ??????????????????????## ; #?????????????????? | | ?????????????????????## ; #????? ???????????? | | ???????????????????###% #????# ???????????? | | ????????????????????r%! |% #???? ??????????? | | ?????????????????????%!!=%! ##?? " ?????????? | | ??????????????????????#|kg%%%##; #???????????? | | ?????????????????????##*@=|! ; !#????????????? | | ????????????????????##!%=g%=g *%!%#????????????? | | ????????????????????# |t!g* ;!=u|=#???????????? | | ????????????????????# t ## ####; #??????????? | | ????????????????????##!% ##??##????????????????? | | ?????????????????????##t ##?????????????????????? | | ??????????????????????# #### #?????????????????? | | ??????????????????????#### #?????????????????? | | ??????????????????????# ######?????????????????? | | ??????????????????????# ##????????????????????? | | ?????????????????????## #?????????? #????????? | | ????????????????????## ##???????? #????????? | | ???????????????????## ##??###?# ###??????? | | ???????????????????# ### ## ???????? | | ???????????????????# ???????? | | ???????????????????## ??????????? | | ????????????????????## """ ?????????? | | ?????????????????????###### """ ??????????? | | ??????????????????????????## """ ###????????????? | | ???????????????????????????# #??????????????? | | ???????????????????????????# ##??????????????? | | ???????????????????????????## ##???????????????? | | ????????????????????????????# ##????????????????? | | ??????????????????####??????# #?????????????????? | | ?????????????????## ######## ###########???????? | +----------------------------------------------------+ Best States ------------- Heat Dissipation 35 Energy Generation 10 Energy Capacity 250 Matter Stores 300 Matter Capacity 300 Sight Range 16 Terrain Scan Density 10 Evasion (%) 44 Recoil Reduction 2 Item Schematics ----------------- None Robot Schematics ------------------ None Fabricated ------------ Nothing Repaired ---------- Nothing Studied --------- None Alien Tech Used ----------------- None Achievements -------------- None Challenges ------------ None Game ------ Seed BombSingularityScreen Manual? 0 Play Time 00:14:47 Cumulative 36.5 hours Start 2026.08.31 @ 08:26:00 End 2026.08.31 @ 08:42:53 Sessions 1 Manual Loads 0 Difficulty Rogue Special Mode None Game No. 99 Rogue 99 Adventurer 0 Explorer 0 Win Type - Total 0 Types 0/0/0/0/0/0/0/0/0/0 Lore% 22 Gallery% 29 Achievement% 20 Wizard Run 0 Options --------- Layout 2 ASCII 0 Keyboard 0 Movement Numpad Keybinds 1 Fullscreen 1 Font 32/SmallcapsGlow Map View 77x44 Zoom Use 0% Tactical HUD 1 Map Filters NONE Filters NONE Steam 1 RUN: 90e7e303-506e-46e8-8c93-58cbed3f61cf